bitfinex/quotes_ETHUSD_20240820
["timestamp","ask_amount","ask_price","bid_price","bid_amount"]
[1724157048675,5.35864,2656.3,2656.1,2.3698]
[1724157048899,5.35864,2656.3,2656.0,0.0636291]
[1724157049520,3.7648,2656.2,2656.0,0.0636291]
[1724157050182,1.594,2656.3,2656.0,0.0636291]
[1724157050384,1.594,2656.3,2656.0,3.8286591]
[1724157050581,1.594,2656.3,2656.0,4.83629601]
[1724157050767,3.0,2656.9,2656.1,2.3841]
[1724157050970,5.35793,2656.8,2656.4,2.3841]
[1724157051503,3.76407,2656.7,2656.4,2.3841]
[1724157051716,1.594,2656.6,2656.4,2.3841]
[1724157052065,1.594,2656.6,2656.1,2.3841]
[1724157052262,5.3585,2656.4,2656.1,2.3841]
[1724157053185,1.594,2656.4,2656.1,2.3841]
[1724157055283,1.594,2656.2,2656.0,7.3736291]
[1724157056111,1.594,2656.2,2656.0,0.0636291]
[1724157062232,9.12369,2656.2,2656.0,0.0636291]
[1724157062796,3.76491,2656.1,2656.0,0.0636291]
[1724157062992,10.50822,2656.1,2656.0,0.0636291]
[1724157063194,12.09492,2656.1,2656.0,0.0636291]
[1724157063610,11.26052,2656.1,2656.0,0.0636291]
[1724157068403,1.594,2656.1,2656.0,0.0636291]
[1724157069128,1.594,2656.3,2656.0,0.0636291]
[1724157069446,1.594,2656.1,2656.0,0.0636291]
[1724157070116,1.594,2656.3,2656.0,0.0636291]
[1724157071853,5.35864,2656.3,2656.0,0.0636291]
[1724157073067,1.594,2656.3,2656.0,0.0636291]
[1724157074239,5.35864,2656.3,2656.0,0.0636291]
[1724157074545,1.594,2656.1,2656.0,0.0636291]
[1724157074762,1.594,2656.1,2656.0,0.68885701]
[1724157075177,1.594,2656.1,2656.0,0.0636291]
[1724157078344,5.35891,2656.1,2656.0,0.0636291]
[1724157082408,1.594,2656.1,2656.0,0.0636291]
[1724157083724,1.594,2656.1,2656.0,2.5493291]
[1724157085236,3.76449,2656.4,2656.0,2.5493291]
[1724157085381,1.594,2656.3,2656.0,2.5493291]
[1724157085722,1.594,2656.3,2656.0,6.94580401]
[1724157086289,1.594,2656.3,2656.0,3.18077401]
[1724157087504,1.594,2656.3,2656.0,6.94581401]
[1724157088744,1.594,2656.3,2656.0,2.5493291]
[1724157094016,5.35864,2656.3,2656.0,2.5493291]
[1724157096943,1.594,2656.1,2656.0,2.5493291]
[1724157100947,1.594,2656.1,2656.0,0.0636291]
[1724157101331,5.35891,2656.1,2656.0,0.0636291]
[1724157101539,6.120571,2656.1,2656.0,0.0636291]
[1724157102238,2.355661,2656.1,2656.0,0.0636291]
[1724157102453,1.594,2656.1,2656.0,0.0636291]
[1724157103457,3.7648,2656.2,2656.0,0.0636291]
[1724157105053,1.594,2656.1,2656.0,0.0636291]
[1724157105298,3.76441,2656.5,2656.0,6.2439191]
[1724157105594,1.594,2656.3,2656.0,2.4789291]
[1724157107709,5.35873,2656.3,2656.0,0.0636291]
[1724157108503,1.594,2656.1,2656.0,0.0636291]
[1724157112622,3.76428,2656.6,2656.2,2.4527]
[1724157112802,5.35835,2656.5,2656.2,2.4527]
[1724157113007,9.12278,2656.5,2656.2,2.4527]
[1724157113192,5.35835,2656.5,2656.2,2.4527]
[1724157113402,9.12282,2656.5,2656.2,2.4527]
[1724157113733,5.35835,2656.5,2656.2,2.4527]
[1724157114229,1.594,2656.3,2656.0,6.2811691]
[1724157115109,1.594,2656.3,2656.0,2.5162291]
[1724157116203,1.594,2656.3,2656.0,0.0636291]
[1724157116421,1.594,2656.1,2656.0,0.0636291]
[1724157120154,5.35842,2656.5,2656.0,3.8285991]
[1724157120800,1.594,2656.5,2656.0,0.0636291]
[1724157121106,1.594,2656.3,2656.0,0.0636291]
[1724157124531,1.594,2656.3,2656.0,3.8286791]
[1724157126839,1.594,2656.3,2656.0,0.0636291]
[1724157128223,1.594,2656.3,2656.0,3.8286791]
[1724157129340,3.76422,2656.6,2656.1,6.1053]
[1724157129567,3.76414,2656.7,2656.2,6.10516]
[1724157129843,5.35828,2656.6,2656.2,2.3404]
[1724157139873,9.12256,2656.6,2656.2,2.3404]
[1724157140237,5.35828,2656.6,2656.2,2.3404]
[1724157140432,9.12256,2656.6,2656.2,2.3404]
[1724157141237,3.76435,2656.5,2656.2,2.3404]
[1724157141571,5.35828,2656.6,2656.2,2.3404]
[1724157142135,3.76441,2656.5,2656.2,2.3404]
[1724157142341,1.594,2656.4,2656.2,2.3404]
[1724157142963,5.35858,2656.4,2656.0,2.3156291]
[1724157143163,3.76441,2656.5,2656.0,2.3156291]
[1724157143164,1.594,2656.2,2656.0,2.3156291]
[1724157143377,1.594,2656.2,2656.0,0.0636291]
[1724157143672,5.35883,2656.2,2656.0,0.0636291]
[1724157146379,1.594,2656.2,2656.0,0.0636291]
[1724157146992,3.76444,2656.5,2656.1,2.3037]
[1724157147204,1.594,2656.4,2656.1,6.68176491]
[1724157147405,1.594,2656.4,2656.1,6.06852]
[1724157149564,1.594,2656.4,2656.1,2.3037]
[1724157151825,1.594,2656.2,2656.0,0.0636291]
[1724157151973,7.52982,2656.1,2656.0,0.0636291]
[1724157152173,8.497202,2656.1,2656.0,0.0636291]
[1724157154310,9.12382,2656.1,2656.0,0.0636291]
[1724157154675,3.76473,2656.3,2656.0,2.4364291]
[1724157154872,1.594,2656.2,2656.0,2.4364291]
[1724157156374,1.594,2656.4,2656.0,2.4364291]
[1724157156570,1.594,2656.2,2656.0,2.4364291]
[1724157157206,3.76491,2656.1,2656.0,0.0636291]
[1724157157368,1.594,2656.2,2656.0,0.0636291]
[1724157157572,5.35878,2656.2,2656.0,0.0636291]
[1724157158722,3.76491,2656.1,2656.0,0.0636291]
[1724157158883,8.442189,2656.1,2656.0,0.0636291]
[1724157161326,15.064499,2656.1,2656.0,0.0636291]
[1724157161541,18.829409,2656.1,2656.0,0.0636291]
[1724157161747,21.829409,2656.1,2656.0,0.0636291]
[1724157162196,25.09519246,2656.1,2656.0,0.0636291]
[1724157162604,25.09519246,2656.1,2654.9,2.4071]
[1724157162605,3.76623,2655.2,2654.9,2.4071]
[1724157162790,1.594,2655.0,2654.9,2.4071]
[1724157162999,5.36054,2655.0,2654.4,2.3142]
[1724157163205,1.594,2654.7,2654.4,6.08147]
[1724157163402,1.594,2654.7,2654.4,2.3142]
[1724157164327,1.594,2654.7,2654.4,6.08152]
[1724157164630,1.594,2654.7,2654.4,7.066416]
[1724157164832,1.594,2654.9,2654.4,7.066416]
[1724157165016,1.594,2654.9,2654.5,3.76716]
[1724157165328,1.594,2654.9,2654.6,3.76704]
[1724157166405,1.594,2655.1,2654.8,2.3396]
[1724157166608,1.594,2655.1,2654.9,3.76659]
[1724157168919,1.594,2655.1,2654.8,2.4149271]
[1724157169126,1.594,2655.1,2654.8,3.03310111]
[1724157169305,1.594,2655.1,2654.8,3.03310081]
[1724157169519,1.594,2655.1,2654.9,3.76658]
[1724157172711,1.594,2655.1,2654.8,2.3396]
[1724157173502,1.594,2655.1,2654.8,6.10633]
[1724157174757,1.594,2654.9,2654.6,6.16063]
[1724157176841,1.594,2654.9,2654.7,3.76686]
[1724157177641,1.594,2655.1,2654.7,3.76686]
[1724157180078,2.3633,2655.7,2655.0,3.76643]
[1724157180209,1.594,2655.6,2655.2,7.53223]
[1724157180407,1.594,2655.6,2655.2,3.76611]
[1724157181912,1.594,2655.4,2655.0,3.76637]
[1724157182150,1.594,2655.4,2655.1,3.76632]
[1724157182468,1.594,2655.2,2654.7,3.76679]
[1724157182673,1.594,2655.2,2653.7,4.26170857]
[1724157182674,1.594,2654.8,2654.5,11.07711]
[1724157183119,1.594,2654.8,2654.5,7.31]
[1724157183909,1.594,2654.8,2654.4,2.463]
[1724157184117,1.594,2654.8,2654.4,6.23028]
[1724157184445,6.18003,2654.9,2654.4,6.23028]
[1724157184948,6.18003,2654.9,2654.5,3.76718]
[1724157185161,3.76642,2655.1,2654.5,3.76718]
[1724157185162,3.76648,2655.0,2654.5,3.76718]
[1724157187066,3.76648,2655.0,2654.5,3.76707]
[1724157187067,3.76649,2655.0,2654.5,3.76707]
[1724157188058,6.08382,2655.1,2654.6,3.76704]
[1724157188646,2.3623,2655.1,2654.4,2.463]
[1724157188849,6.12834,2655.4,2654.8,3.76674]
[1724157189023,6.12834,2655.4,2654.7,3.7668]
[1724157189024,3.76604,2655.4,2654.9,6.0342]
[1724157189641,3.76603,2655.4,2654.8,3.76676]
[1724157190049,3.76619,2655.2,2654.8,3.76676]
[1724157190249,4.755642,2655.2,2654.8,3.76676]
[1724157190430,4.755642,2655.2,2654.6,3.76691]
[1724157190866,3.76637,2655.1,2654.6,7.53387]
[1724157191744,4.755642,2655.2,2654.6,3.76691]
[1724157192252,3.76638,2655.1,2654.5,13.34467]
[1724157192457,3.2381022,2655.0,2654.5,7.31]
[1724157192688,9.919,2655.0,2654.5,11.07712]
[1724157192890,9.91905,2655.0,2654.5,11.07712]
[1724157193077,6.15245,2655.0,2654.5,11.07712]
[1724157193891,2.3859,2655.0,2654.5,11.07712]
[1724157194092,2.3859,2655.0,2654.6,3.76702]
[1724157194872,4.31635,2655.1,2654.6,6.07332]
[1724157195870,4.755722,2655.2,2654.7,3.76682]
[1724157196195,0.8585722,2655.1,2654.7,3.76682]
[1724157196403,4.6249222,2655.1,2654.7,3.76682]
[1724157197821,3.76652,2655.0,2654.5,3.76717]
[1724157200530,0.8585722,2655.1,2654.5,3.76717]
[1724157200717,1.17543042,2655.0,2654.5,3.76717]
[1724157201439,1.17543042,2655.0,2654.6,3.76701]
[1724157204527,1.596,2654.7,2654.6,3.76701]
[1724157205149,4.6249222,2655.1,2654.7,3.76683]
[1724157205150,1.596,2654.9,2654.7,3.76683]
[1724157205638,1.596,2654.9,2654.8,3.76676]
[1724157206640,3.7662,2655.2,2654.8,3.76676]
[1724157206847,4.76243,2655.2,2654.8,3.76676]
[1724157209436,4.76243,2655.2,2654.7,2.4623]
[1724157209746,3.76634,2655.1,2654.7,2.4623]
[1724157210327,3.76634,2655.1,2654.7,6.2292]
[1724157213065,4.76244,2655.2,2654.7,6.2292]
[1724157213251,0.852851,2655.1,2654.7,6.2292]
[1724157213943,4.619201,2655.1,2654.7,6.2292]
[1724157221071,4.619201,2655.1,2654.7,3.7669]
[1724157221279,3.76662,2654.9,2654.5,3.7671]
[1724157221473,3.76662,2654.9,2654.3,6.13606]
[1724157221474,3.76676,2654.8,2654.4,3.76731]
[1724157221639,4.372502,2654.8,2654.4,3.76731]
[1724157225387,0.605742,2654.8,2654.4,3.76731]
[1724157226483,1.596,2654.6,2654.4,3.76731]
[1724157229557,1.596,2654.6,2654.2,13.39834]
[1724157229750,1.596,2654.4,2654.2,17.16585]
[1724157229978,1.596,2654.6,2654.4,3.7672]
[1724157230248,1.596,2654.6,2654.5,6.19038]
[1724157231589,1.596,2654.6,2654.5,9.95756]
[1724157231777,1.596,2654.8,2654.6,3.76698]
[1724157232654,1.596,2654.8,2654.7,3.7669]
[1724157232994,2.4304,2655.2,2654.7,3.7669]
[1724157232995,6.19659,2655.2,2654.7,3.7669]
[1724157233195,1.83904,2655.1,2654.7,3.7669]
[1724157233988,1.596,2655.0,2654.7,3.7669]
[1724157235497,1.596,2654.8,2654.5,6.19028]
[1724157236101,1.596,2654.8,2654.6,3.76704]
[1724157236454,1.596,2654.8,2654.5,6.19028]
[1724157236655,1.596,2654.8,2654.5,3.76708]
[1724157236891,1.596,2654.6,2654.5,3.76708]
[1724157242060,1.596,2654.6,2654.3,3.76736]
[1724157242672,1.596,2654.6,2654.2,11.07759]
[1724157244570,1.596,2654.4,2654.2,3.76759]
[1724157246581,1.596,2654.4,2654.2,3.76754]
[1724157253915,1.596,2654.4,2654.2,3.76753]
[1724157256108,3.9054,2654.4,2654.1,3.76774]
[1724157256309,4.672665,2654.4,2654.1,3.76774]
[1724157256702,1.596,2654.2,2653.9,13.49139]
[1724157256905,3.76725,2654.5,2654.1,3.76775]
[1724157257105,1.596,2654.4,2654.1,3.76775]
[1724157257772,1.596,2654.2,2654.0,3.76788]
[1724157259410,1.596,2654.2,2653.8,7.53619]
[1724157259754,1.596,2654.2,2653.9,3.76803]
[1724157264601,1.596,2654.2,2654.0,3.76789]
[1724157266503,3.76718,2654.5,2654.0,3.76783]
[1724157266699,1.596,2654.3,2654.0,3.76783]
[1724157266906,1.596,2654.3,2654.0,6.1003]
[1724157269827,1.596,2654.3,2653.9,3.76801]
[1724157270567,3.9811,2654.3,2653.9,3.76801]
[1724157270921,1.596,2654.1,2653.9,3.76801]
[1724157272229,1.596,2654.1,2653.7,26.00574]
[1724157272422,5.36376,2654.1,2653.7,23.51824]
[1724157272628,1.596,2654.1,2653.7,27.28648]
[1724157272969,1.596,2654.1,2653.7,23.51824]
[1724157273743,1.596,2653.8,2653.7,19.75]
[1724157274932,1.596,2654.0,2653.7,19.75]
[1724157275149,1.596,2654.0,2653.7,23.51831]
[1724157275343,1.596,2654.0,2653.7,27.28662]
[1724157275831,1.596,2654.0,2653.7,23.51823]
[1724157276047,6.02099,2654.4,2653.9,3.76802]
[1724157276254,3.76739,2654.4,2653.9,6.25892]
[1724157276578,5.36339,2654.4,2653.9,6.25892]
[1724157276779,1.596,2654.4,2653.9,6.25892]
[1724157277281,5.36335,2654.4,2653.9,6.25892]
[1724157277575,1.596,2654.4,2654.0,3.76787]
[1724157277959,1.596,2654.4,2653.9,6.25892]
[1724157278426,5.36333,2654.4,2653.9,6.25892]
[1724157281480,1.596,2654.2,2653.9,6.25892]
[1724157281969,1.596,2654.2,2653.9,3.76792]
[1724157288040,1.596,2654.2,2653.9,7.53587]
[1724157288253,1.596,2654.2,2653.9,3.76792]
[1724157289814,1.596,2654.0,2653.6,3.76839]
[1724157290355,1.596,2653.8,2653.6,3.76839]
[1724157291535,1.596,2653.8,2653.4,3.76873]
[1724157291740,1.596,2653.8,2653.5,3.76859]
[1724157293049,1.596,2653.8,2653.4,3.76874]
[1724157293393,3.998,2653.8,2653.4,3.76874]
[1724157294798,2.3868,2654.2,2653.7,3.76824]
[1724157294999,1.596,2654.1,2653.7,7.53649]
[1724157295208,1.596,2654.1,2653.7,3.76824]
[1724157295552,2.747809,2654.1,2653.7,3.76824]
[1724157296335,2.747809,2654.1,2653.7,7.53649]
[1724157296642,2.747809,2654.1,2653.7,3.76824]
[1724157297143,2.747809,2654.1,2653.8,3.76816]
[1724157299337,1.596,2654.1,2653.8,3.76816]
[1724157301646,1.596,2653.9,2653.6,7.53672]
[1724157301841,1.596,2653.9,2653.7,3.76831]
[1724157302705,1.596,2653.9,2653.8,3.76818]
[1724157303742,2.4148,2654.5,2653.8,3.76809]
[1724157303938,5.36335,2654.4,2653.9,3.76796]
[1724157304517,1.596,2654.2,2653.9,3.76796]
[1724157304718,2.4148,2654.5,2654.1,3.76775]
[1724157304923,2.4148,2654.5,2654.0,3.76776]
[1724157304924,1.596,2654.3,2654.0,3.76776]
[1724157305815,1.596,2654.3,2654.1,3.76762]
[1724157306626,6.24629,2655.1,2654.5,3.7671]
[1724157306829,1.596,2655.0,2654.4,3.76729]
[1724157307045,5.36258,2655.0,2654.4,3.76729]
[1724157307417,1.596,2654.8,2654.4,3.76729]
[1724157307604,1.596,2654.8,2654.4,7.53453]
[1724157307806,1.596,2654.8,2654.4,3.76724]
[1724157308205,1.596,2654.8,2654.4,7.53447]
[1724157308403,1.596,2654.8,2654.5,3.76717]
[1724157308948,1.596,2654.8,2654.4,3.76723]
[1724157309130,1.596,2654.8,2654.4,7.53447]
[1724157309541,1.596,2654.8,2654.4,3.76723]
[1724157309739,1.596,2654.8,2654.4,7.53448]
[1724157309955,1.596,2654.8,2654.4,7.53447]
[1724157310127,1.596,2654.8,2654.4,3.76723]
[1724157310329,1.596,2654.8,2654.4,7.53447]
[1724157310716,1.596,2654.8,2654.4,8.53447]
[1724157310918,10.01272,2655.1,2654.5,3.76711]
[1724157311252,1.596,2654.9,2654.5,3.76711]
[1724157311850,1.596,2654.9,2654.6,3.76701]
[1724157312656,10.01273,2655.1,2654.6,3.76701]
[1724157312861,1.596,2654.9,2654.6,3.76701]
[1724157315256,1.596,2655.1,2654.6,7.1303697]
[1724157316058,1.596,2655.1,2654.8,3.76676]
[1724157316258,3.76577,2655.5,2655.0,6.04746]
[1724157316562,1.596,2655.4,2655.0,2.2811]
[1724157316720,1.596,2655.4,2655.0,3.76644]
[1724157317126,1.596,2655.2,2655.0,3.76644]
[1724157317555,1.596,2655.2,2654.9,3.7666]
[1724157318066,1.596,2655.0,2654.6,7.1371997]
[1724157318363,1.596,2655.0,2654.6,3.76699]
[1724157318532,1.596,2654.8,2654.6,3.76699]
[1724157318860,1.596,2654.8,2654.5,3.76718]
[1724157320663,1.596,2654.8,2654.6,3.76703]
[1724157321976,1.596,2655.0,2654.6,7.53406]
[1724157322479,1.596,2655.0,2654.6,3.76696]
[1724157323771,5.3625,2655.0,2654.6,3.76696]
[1724157324453,1.596,2655.0,2654.6,7.53392]
[1724157324684,1.596,2655.0,2654.7,3.76687]
[1724157324847,1.596,2655.0,2654.6,5.0366277]
[1724157325555,2.3796,2655.2,2654.7,3.7669]
[1724157325772,1.596,2655.1,2654.8,3.76669]
[1724157329475,1.596,2655.1,2654.6,5.0366977]
[1724157329476,1.596,2654.9,2654.6,3.76703]
[1724157329683,1.596,2654.9,2654.7,3.76687]
[1724157330066,1.596,2654.9,2654.4,8.930037]
[1724157330264,3.9428,2654.9,2654.4,4.76728]
[1724157330463,1.596,2654.7,2654.4,4.76726]
[1724157330677,1.596,2654.7,2654.5,3.76718]
[1724157332385,0.09579199,2654.6,2654.5,3.76718]
[1724157333153,1.596,2654.9,2654.5,6.23528]
[1724157333367,1.596,2655.0,2654.7,3.76687]
[1724157335590,1.596,2655.0,2654.8,7.53343]
[1724157335790,1.596,2655.0,2654.8,3.76669]
[1724157336290,1.596,2655.0,2654.7,3.7669]
[1724157338304,1.596,2655.0,2654.6,7.53391]
[1724157338607,1.596,2654.8,2654.6,7.5339]
[1724157338958,1.596,2654.8,2654.5,3.32155]
[1724157338959,1.596,2654.8,2654.5,4.62062]
[1724157339160,1.596,2654.8,2654.5,3.76717]
[1724157340287,3.76718,2654.5,2654.4,1.0]
[1724157341494,1.596,2654.6,2654.4,1.0]
[1724157344866,0.095831,2654.5,2654.4,1.0]
[1724157345255,0.095831,2654.5,2654.4,10.986394]
[1724157345453,0.095831,2654.5,2654.4,13.422094]
[1724157345655,1.596,2655.1,2654.7,7.53368]
[1724157345851,1.596,2655.1,2654.8,3.76669]
[1724157346183,0.09286814,2655.0,2654.8,3.76669]
[1724157346379,0.09286814,2655.0,2654.7,3.76689]
[1724157346693,1.596,2654.9,2654.7,3.76689]
[1724157347286,0.08936827,2654.8,2654.7,3.76689]
[1724157348368,0.08936827,2654.8,2654.5,7.53411]
[1724157348698,0.08936827,2654.8,2654.6,3.76703]
[1724157352364,1.596,2654.7,2654.6,3.76703]
[1724157352703,0.08926243,2654.7,2654.6,3.76703]
[1724157353068,1.596,2654.9,2654.6,3.76703]
[1724157353700,0.08936827,2654.8,2654.6,3.76703]
[1724157355975,0.08936827,2654.8,2654.6,6.65827932]
[1724157356175,1.596,2655.0,2654.6,6.65827932]
[1724157356407,0.08956002,2654.9,2654.6,6.65827932]
[1724157356586,0.08956002,2654.9,2654.6,3.76703]
[1724157361091,0.08956002,2654.9,2654.6,3.76697]
[1724157368522,0.08956002,2654.9,2654.6,7.53395]
[1724157368736,1.596,2655.0,2654.7,6.16538]
[1724157368889,0.0893813,2654.8,2654.7,6.16538]
[1724157369089,1.596,2655.0,2654.7,6.16538]
[1724157369090,1.596,2655.0,2654.7,7.158615]
[1724157369327,0.08938577,2654.8,2654.7,6.1654]
[1724157369495,9.25454,2655.5,2654.6,1.596]
[1724157369496,5.36191,2655.4,2654.9,3.76655]
[1724157371428,1.596,2655.2,2654.9,3.76655]
[1724157371625,0.08956512,2655.1,2654.9,3.76655]
[1724157371789,1.596,2655.2,2654.9,4.375015]
[1724157371985,1.596,2655.2,2654.9,4.375005]
[1724157372189,0.08956512,2655.1,2654.9,4.375005]
[1724157372425,1.596,2655.2,2654.9,4.375005]
[1724157372733,0.08956512,2655.1,2654.9,4.375005]
[1724157373065,1.596,2655.2,2654.9,4.375005]
[1724157373235,5.36195,2655.4,2655.0,0.6693105]
[1724157373417,0.08956512,2655.1,2655.0,0.6693105]
[1724157373623,0.08956756,2655.1,2655.0,0.6693105]
[1724157373913,5.36195,2655.4,2655.0,0.6693105]
[1724157374120,0.08956756,2655.1,2654.9,4.374955]
[1724157374319,1.596,2655.0,2654.5,2.3684]
[1724157374519,1.596,2655.0,2654.4,7.218984]
[1724157374520,1.596,2654.8,2654.4,4.76723]
[1724157374839,0.08915596,2654.7,2654.4,4.76723]
[1724157375053,1.596,2654.8,2654.5,1.444563]
[1724157375341,0.08915596,2654.7,2654.5,5.211733]
[1724157375635,1.596,2654.8,2654.5,5.211733]
[1724157375825,0.08915596,2654.7,2654.5,5.211733]
[1724157376195,5.36259,2655.0,2654.5,5.211733]
[1724157376850,0.08630702,2654.9,2654.5,5.211733]
[1724157382340,0.08630702,2654.9,2654.6,3.76702]
[1724157382710,0.08630702,2654.9,2654.6,3.76697]
[1724157383242,0.08630702,2654.9,2654.6,7.53393]
[1724157383444,0.08630702,2654.9,2654.6,8.5317793]
[1724157383841,0.08630702,2654.9,2654.8,3.76676]
[1724157384042,0.08630702,2654.9,2654.7,6.07458]
[1724157384345,1.596,2655.1,2654.7,3.76678]
[1724157384746,0.08641285,2655.0,2654.7,3.76678]
[1724157387662,1.596,2654.9,2654.5,3.76708]
[1724157387957,0.08620118,2654.8,2654.5,3.76708]
[1724157388116,0.08620118,2654.8,2654.3,3.76735]
[1724157388317,1.596,2654.9,2654.5,3.76707]
[1724157388718,1.596,2654.9,2654.5,7.53417]
[1724157388948,2.2804,2654.8,2654.5,7.53417]
[1724157392235,2.2804,2654.8,2654.6,3.76702]
[1724157393627,1.596,2654.9,2654.6,3.76702]
[1724157394163,1.596,2654.9,2654.7,3.76688]
[1724157394676,1.596,2654.9,2654.8,3.76676]
[1724157394828,2.2551,2655.0,2654.7,4.752895]
[1724157394829,1.596,2655.1,2654.7,4.752895]
[1724157395027,0.08336157,2654.9,2654.7,3.76688]
[1724157395221,1.596,2655.1,2654.7,3.76688]
[1724157395657,0.0834674,2655.0,2654.6,3.76703]
[1724157395841,3.9359,2654.9,2654.6,3.76703]
[1724157396360,0.08325573,2654.8,2654.6,3.76703]
[1724157396725,3.9359,2654.9,2654.6,3.76703]
[1724157397128,0.08322598,2654.8,2654.6,3.76703]
[1724157397359,0.08322598,2654.8,2654.5,7.53418]
[1724157397865,0.08322598,2654.8,2654.5,7.53419]
[1724157398159,0.08322598,2654.8,2654.6,3.76702]
[1724157401276,3.9359,2654.9,2654.6,3.76702]
[1724157403176,3.9359,2654.9,2654.7,3.76688]
[1724157403379,1.596,2654.9,2654.7,3.76688]
[1724157403759,0.0832529,2654.8,2654.7,3.76688]
[1724157404300,0.0832529,2654.8,2654.7,10.292176]
[1724157404454,1.596,2655.1,2654.8,3.76665]
[1724157404808,0.08346456,2655.0,2654.8,3.76665]
[1724157407675,0.08335508,2654.9,2654.8,3.76665]
[1724157408161,1.596,2655.1,2654.7,6.525276]
[1724157408360,0.08335954,2654.9,2654.7,3.76688]
[1724157408582,1.596,2654.9,2654.6,3.76699]
[1724157408784,0.08366994,2654.8,2654.6,3.76699]
[1724157408958,1.596,2654.9,2654.6,3.76699]
[1724157410187,0.08366994,2654.8,2654.6,3.76699]
[1724157411693,0.08366994,2654.8,2654.5,27.58417]
[1724157413064,0.08366994,2654.8,2654.6,3.76701]
[1724157418446,1.596,2654.7,2654.5,0.3]
[1724157419126,0.08338185,2654.6,2654.5,0.3]
[1724157419344,1.596,2654.7,2654.5,0.3]
[1724157419712,0.08338185,2654.6,2654.5,0.3]
[1724157419912,1.596,2654.7,2654.5,0.3]
[1724157420662,2.4359,2654.9,2654.5,0.3]
[1724157420810,7.79852,2654.9,2654.5,0.3]
[1724157421134,0.08335208,2654.8,2654.5,0.3]
[1724157422954,1.596,2654.7,2654.5,0.3]
[1724157429495,0.08336562,2654.6,2654.5,0.3]
[1724157434176,3.85040562,2654.6,2654.5,0.3]
[1724157434516,0.08336562,2654.6,2654.5,0.3]
[1724157435616,1.596,2654.7,2654.5,0.3]
[1724157435980,0.0836399,2654.6,2654.5,0.3]
[1724157446746,3.8506799,2654.6,2654.5,0.3]
[1724157448953,3.8506799,2654.6,2654.5,0.3]
[1724157450443,0.0836399,2654.6,2654.5,0.3]
[1724157452112,10.96865889,2654.6,2654.5,0.3]
[1724157452333,10.5973199,2654.6,2654.5,0.3]
[1724157454057,7.53522,2654.2,2654.1,0.3]
[1724157454355,15.37008007,2654.2,2654.1,0.3]
[1724157454536,20.45708808,2654.2,2654.1,0.3]
[1724157455362,16.68947808,2654.2,2654.1,0.3]
[1724157459766,20.45708808,2654.2,2654.1,0.3]
[1724157466725,24.22469808,2654.2,2654.1,0.3]
[1724157467338,11.30409,2653.9,2653.8,0.4]
[1724157467542,18.98049065,2653.9,2653.8,0.4]
[1724157469252,22.74852065,2653.9,2653.8,0.4]
[1724157469770,22.74852065,2653.9,2652.8,2.3522]
[1724157469771,3.76873,2653.5,2652.8,2.3522]
[1724157470067,1.596,2652.9,2652.8,2.3522]
[1724157470427,1.67484678,2652.9,2652.8,2.3522]
[1724157475585,5.44429678,2652.9,2652.6,2.3877]
[1724157475911,0.07884678,2652.9,2652.6,2.3877]
[1724157476083,1.67484678,2652.9,2652.6,5.709478]
[1724157477293,5.44432678,2652.9,2652.6,5.709478]
[1724157477993,5.44432678,2652.9,2652.6,2.3877]
[1724157478939,1.596,2652.7,2652.6,2.3877]
[1724157479320,1.67117844,2652.7,2652.6,2.3877]
[1724157480072,1.596,2652.7,2652.6,2.3877]
[1724157480872,3.76988,2652.6,2652.5,19.75]
[1724157481075,3.76988,2652.6,2652.3,14.8396]
[1724157481076,5.44101466,2652.7,2652.3,2.4996]
[1724157481325,1.596,2652.5,2652.3,6.26988]
[1724157481473,1.596,2652.5,2652.4,2.4311]
[1724157481968,3.7696,2652.8,2652.4,2.4311]
[1724157482184,1.596,2652.7,2652.4,6.20126]
[1724157482585,1.596,2652.5,2652.0,7.31]
[1724157482814,1.596,2652.5,2652.1,3.77053]
[1724157483124,1.596,2652.3,2652.2,2.4793]
[1724157485602,1.596,2652.3,2651.9,7.04365008]
[1724157485806,1.596,2652.3,2652.0,2.2533]
[1724157487803,1.596,2652.3,2652.0,6.02397]
[1724157487999,1.596,2652.3,2652.0,9.30573201]
[1724157488193,0.07466419,2652.2,2652.0,9.30573201]
[1724157488593,1.596,2652.3,2652.0,9.30573201]
[1724157489128,0.07466419,2652.2,2652.0,9.30573201]
[1724157489306,0.07466419,2652.2,2652.1,3.77059]
[1724157489506,1.596,2652.3,2652.1,3.77059]
[1724157490017,0.07460629,2652.2,2652.0,9.30578201]
[1724157490526,1.596,2652.3,2652.0,9.30578201]
[1724157490727,5.36631,2652.3,2652.0,2.2533]
[1724157490935,0.07479165,2652.2,2652.0,2.2533]
[1724157491090,0.07479165,2652.2,2651.9,23.02286008]
[1724157491296,5.36631,2652.3,2651.9,23.02286008]
[1724157491643,5.36631,2652.3,2651.9,19.75]
[1724157491795,0.07500751,2652.2,2651.8,6.2677]
[1724157492134,5.36631,2652.3,2651.8,6.2677]
[1724157492639,0.07503399,2652.2,2651.8,6.2677]
[1724157493133,5.36631,2652.3,2651.8,6.2677]
[1724157493495,0.07500421,2652.2,2651.8,6.2677]
[1724157493905,5.36631,2652.3,2651.8,6.2677]